Cogmind - Beta 16 @@@ ROGUE MODE // 2025.11.10 @ 05:21:04 Player: souux Result: Destroyed by G-47 Trooper with Particle Gun Performance ------------- Evolutions (2) 1000 Regions Visited (3) 600 Robots Destroyed (44) 220 Value Destroyed (970) 970 Prototype IDs (15) 300 Alien Tech Used (0) 0 Bonus (0) 0 TOTAL SCORE: 3090 Bonus ------- None Cogmind --------- Core Integrity 0/550 Matter 270/300 Energy 98/100 System Corruption 0% Temperature Cool (9) Movement Core (50) Location -8/Materials Parts ------- > --- POWER (1) -------- (None) > --- PROPULSION (4) --- (None) > --- UTILITY (4) ------ Advanced Visual Processing Unit Advanced Targeting Computer > --- WEAPON (2) ------- (None) > --- INVENTORY (5) ---- Cargo Legs Medium Storage Unit Hardened Medium Armor Plating Ripper Peak State ------------ > --- POWER ------------ Improved Ion Engine > --- PROPULSION ------- Spiked Treads Spiked Treads > --- UTILITY ---------- Large Storage Unit Scrap Shield > --- WEAPON ----------- Particle Gun Subdweller Beam Cannon > --- INVENTORY -------- Subdweller Power Source Aluminum Leg Cargo Legs Subdweller Monowheel Large Matter Pod Structural Scanner Subdweller Optics Hacking Suite Subdweller Laser Subdweller Machine Gun Multitool Ripper [Rating: 18] Favorites ----------- Power Ion Engine Engine Ion Engine Power Core Light Nuclear Core Propulsion Light Treads Treads Light Treads Leg Aluminum Leg Wheel Wheel Utility Large Storage Unit Device Seismic Detector Storage Large Storage Unit Processor Advanced Visual Processing Unit Hackware Hacking Suite Protection Scrap Shield Weapon EM Pulse Gun Energy Gun EM Pulse Gun Energy Cannon Subdweller Beam Cannon Ballistic Gun Battle Rifle Ballistic Cannon Battle Cannon Build | -11 -10 -10 -8 ------- Run | Yrd Mat Sub Mat Slots Evolved 4 | . . . 4 Power . | . . . . Propulsion 2 | . . . 2 Utility 2 | . . . 2 Weapon . | . . . . Parts Attached 38 | 7 10 14 7 Power 7 | 1 2 2 2 Engine 6 | 1 2 2 1 Core 1 | . . . 1 Reactor . | . . . . Propulsion 9 | 2 2 5 . Treads 6 | . 2 4 . Leg 1 | . . 1 . Wheel 2 | 2 . . . Hover . | . . . . Flight . | . . . . Utility 9 | 2 2 . 5 Device 3 | 1 1 . 1 Storage 2 | 1 1 . . Processor 2 | . . . 2 Hackware 1 | . . . 1 Protection 1 | . . . 1 Artifact . | . . . . Weapon 13 | 2 4 7 . Energy Gun 7 | 1 3 3 . Energy Cannon 1 | . . 1 . Ballistic Gun 3 | 1 1 1 . Ballistic Cannon 2 | . . 2 . Launcher . | . . . . Special Weapon . | . . . . Impact Weapon . | . . . . Slashing Weapon . | . . . . Piercing Weapon . | . . . . Special Melee Weapon . | . . . . Unidentified Prototypes . | . . . . Parts Lost 18 | . 3 5 10 Power 5 | . 1 1 3 Propulsion 4 | . . 2 2 Utility 5 | . 1 1 3 Weapon 4 | . 1 1 2 Highest Loss Streak 8 | . 2 2 8 To Critical Strikes . | . . . . Average Backups 11 | 4 10 13 8 Power . | . . . . Propulsion 4 | 3 4 5 1 Utility 4 | . 3 5 3 Weapon 2 | . 1 2 2 Tool/Special . | . . . . Unused Backups 17 | . 2 4 11 Power . | . . . . Propulsion 4 | . . 1 3 Utility 6 | . . 2 4 Weapon 6 | . 2 1 3 Tool/Special 1 | . . . 1 Average Slot Usage (%) 91 | . 99 92 30 Engine 13 | . 14 13 2 Treads 23 | . 26 22 7 Leg 1 | . . 3 . Device 10 | . 13 9 1 Storage 13 | . 14 14 4 Energy Gun 9 | . 18 4 3 Energy Cannon 6 | . . 11 3 Ballistic Gun 7 | . 9 6 . Ballistic Cannon 3 | . . 5 . Peak Build Rating 18 | 7 8 16 18 Average Rating 10 | 5 7 13 9 On Entrance 7 | . 7 8 15 Avg Prop Armor Cover (%) 7 | . . 7 . Naked Turns . | . . . . Heaviest Build 39 | 15 30 39 38 Greatest Support 40 | 20 40 40 40 Greatest Overweight (x) 8 | 1 . 1 8 Average Overweight (x) . | . . . . Largest Inventory Capacity 15 | 8 15 15 15 Average Capacity 13 | 7 12 15 10 Most Carried 15 | 7 13 15 15 Average Carried 12 | 5 10 14 8 Final Capacity 15 | 8 15 15 5 Final Carried 15 | 7 13 15 5 Class Distribution -------------------- 76% | Mutant 23% | Scavenger-Mutant Dominant Class ---------------- Mutant | -10/Materials Mutant | -10/Subcaves Mutant | -8/Materials Resources | -11 -10 -10 -8 ----------- Run | Yrd Mat Sub Mat Matter Collected 1071 | 309 400 314 48 Remotely . | . . . . Salvage Created 1536 | 187 813 488 48 Parts 99 | 18 49 28 4 Haulers Intercepted 2 | . 2 . . Recyclers Shooed 3 | . 3 . . Parts Field Recycled . | . . . . Retrieved Matter . | . . . . Parts Self-Destructed 7 | . . 7 . Prevented . | . . . . Parts Restored . | . . . . Kills | -11 -10 -10 -8 ------- Run | Yrd Mat Sub Mat Combat Hostiles Destroyed 28 | . 14 13 1 Guns 18 | . 14 3 1 Cannons 9 | . . 9 . AOE 1 | . . 1 . Classes Destroyed 9 | 2 5 2 . Tunneler 5 | 5 . . . Hauler 2 | . 2 . . Recycler 4 | 1 3 . . Operator 2 | . 2 . . Watcher 3 | . 3 . . Swarmer 9 | . 9 . . Grunt 9 | . 5 3 1 Sentry 1 | . . 1 . Subdweller 9 | . . 9 . Best Kill Streak 6 | 6 3 3 1 Combat Bots Only 3 | . 3 3 1 Max Kills in Single Turn 1 | 1 1 1 1 Gunslinging . | . . . . Exploded 1 | . . 1 . Melee . | . . . . Uniques/NPCs Destroyed . | . . . . Combat | -11 -10 -10 -8 -------- Run | Yrd Mat Sub Mat Hostile Shots Fired 240 | . 72 58 110 Missed 55 | . 18 10 27 Hits 185 | . 54 48 83 Melee 9 | . . . 9 Projectile 176 | . 54 48 74 AOE 2 | . . 2 . Critical Strikes 5 | . . . 5 Damage Taken 3108 | . 543 1049 1516 Core 800 | . 72 171 557 Absorbed by Shields . | . . . . Core Remaining (%) 51 | 100 . 2 . Volleys Fired 141 | 13 58 64 6 Largest 2 | 2 2 2 2 Hottest 145 | 60 80 113 145 Shots Fired 256 | 26 116 102 12 Gun 179 | 26 116 31 6 Cannon 77 | . . 71 6 Launcher . | . . . . Special . | . . . . Kinetic 123 | 13 77 33 . Thermal 63 | . . 51 12 Explosive . | . . . . Electromagnetic 70 | 13 39 18 . Robot Hit Streak 29 | 6 9 28 29 Robot Miss Streak 6 | 2 6 1 1 Penetration Max . | . . . . Secondary Targets 1 | . 1 . . Max Gunslinging Chain 1 | . 1 . . Shots Hit Robots 157 | 19 70 59 9 Core Hits 63 | 7 33 20 3 Critical Kills . | . . . . Critical Parts Destroyed . | . . . . Critical Strikes 3 | 1 . 1 1 Burn 1 | . . . 1 Blast 1 | . . 1 . Corrupt 1 | 1 . . . Melee Attacks . | . . . . Impact . | . . . . Slashing . | . . . . Piercing . | . . . . Sneak Attacks . | . . . . Combat Hostiles . | . . . . Follow-up Attacks . | . . . . Damage Inflicted 2686 | 228 965 1318 175 Guns 1577 | 228 961 295 93 Cannons 998 | . . 916 82 Explosions 107 | . . 107 . Melee . | . . . . Ramming 4 | . 4 . . Kinetic 1158 | 99 623 436 . Thermal 912 | . . 737 175 Explosive . | . . . . Electromagnetic 612 | 129 338 145 . Impact . | . . . . Slashing . | . . . . Piercing . | . . . . Highest Corruption 1 | . 1 1 . Average Corruption 1 | . 1 1 . Corruption Purged . | . . . . Corruption Blocked . | . . . . Effects 16 | . . 16 . Message Errors 1 | . . 1 . Matter Fused 6 | . . 6 . Heat Flow Errors 3 | . . 3 . Energy Discharges 2 | . . 2 . Parts Rejected 1 | . . 1 . Parts Fused 1 | . . 1 . Data Loss (minor) 1 | . . 1 . Misfires 1 | . . 1 . Overload Shots . | . . . . Overflow Damage 6 | . . 6 . Projectiles . | . . . . Explosions 6 | . . 6 . Melee . | . . . . Knockbacks 2 | . . 2 . Impact . | . . . . Kinetic 2 | . . 2 . Secondary . | . . . . Self-Inflicted Damage 51 | . . 51 . Shots 1 | . . 1 . Rammed 2 | . 2 . . Targets Rammed 2 | . 2 . . Kicked . | . . . . Crushed . | . . . . Highest Temperature 526 | . 72 219 526 Average Temperature 82 | . 20 40 250 Received Heat Transfer 1062 | . 60 273 729 Effects 5 | . . . 5 Shutdowns 1 | . . . 1 Interference 2 | . . . 2 Matter Decay 1 | . . . 1 Damage (minor) 1 | . . . 1 Siege Activations . | . . . . Martial Activations . | . . . . Shielding Activations . | . . . . Robots Disrupted . | . . . . Combat Hostiles . | . . . . Robots Corrupted . | . . . . Combat Hostiles . | . . . . Parts Fried 4 | . 1 3 . Impact Corruptions . | . . . . Robots Melted . | . . . . Combat Hostiles . | . . . . Parts Melted 3 | . . 3 . Heat Transferred 1358 | . . 951 407 Parts Sabotaged . | . . . . Parts Stolen . | . . . . Parts Stripped . | . . . . Power Chain Reactions 1 | . . 1 . Alert | -11 -10 -10 -8 ------- Run | Yrd Mat Sub Mat Maximum Alert Level . | . . . . Low Security (%) 100 | 100 100 . 100 Level 1 . | . . . . Level 2 . | . . . . Level 3 . | . . . . Level 4 . | . . . . Level 5 . | . . . . High Security . | . . . . Max Security . | . . . . Peak Influence 130 | 15 130 . 85 Initial 20 | . . . 20 Average 34 | 2 40 . 14 Influence Increases 789 | 30 526 90 143 Destroy 0b10 Robot/C 380 | . 280 80 20 Destroy 0b10 Robot/NC 80 | 30 50 . . Destroy Leader 70 | . 60 10 . Successful Hack 16 | . 16 . . Destroy Structure 3 | . . . 3 Partial Spotted 15 | . 15 . . Lose Combat Pursuer 225 | . 105 . 120 Influence Decreases 714 | 30 504 72 108 Entered New Map 31 | . . 11 20 Time Decay 564 | 30 413 51 70 Lost Part 48 | . 20 10 18 Purge Threat 71 | . 71 . . Squads Dispatched 4 | . 3 . 1 Investigation 1 | . 1 . . Extermination . | . . . . Reinforcement 2 | . 2 . . Assault . | . . . . Garrison 1 | . . . 1 Intercept . | . . . . Searches Triggered . | . . . . Construction Impeded . | . . . . Haulers Reinforced . | . . . . Active Scanning Responses . | . . . . Cargo Convoy Interrupts . | . . . . Stealth | -11 -10 -10 -8 --------- Run | Yrd Mat Sub Mat Distress Signals 2 | . 2 . . Communications Jammed . | . . . . Distress Signals . | . . . . Times Spotted 63 | . 34 13 16 Peak Tracking Total 8 | . 6 2 8 Tactical Retreats 7 | . 4 . 3 Traps | -11 -10 -10 -8 ------- Run | Yrd Mat Sub Mat Traps Triggered 3 | . 3 . . Indirectly . | . . . . Trap Hack Attempts . | . . . . Triggered . | . . . . Disarmed . | . . . . Reprogrammed . | . . . . Reused . | . . . . Traps Extracted . | . . . . Installed . | . . . . Triggered . | . . . . Machines | -11 -10 -10 -8 ---------- Run | Yrd Mat Sub Mat Machines Disabled 1 | . . 1 . Max in Single Turn 1 | . . 1 . Garrison Access 1 | . . . 1 Machines Repaired . | . . . . Machines Dismantled . | . . . . Machines Sabotaged . | . . . . Overloaded Fab Kills . | . . . . Hacking | -11 -10 -10 -8 --------- Run | Yrd Mat Sub Mat Machines Accessed 9 | . 6 2 1 Terminals 6 | . 6 . . Fabricators . | . . . . Repair Stations . | . . . . Recycling Units . | . . . . Scanalyzers . | . . . . Garrison Access 1 | . . . 1 Total Hacks 37 | . 25 6 6 Successful 22 | . 15 6 1 Failed 14 | . 9 . 5 Catastrophic 2 | . 1 . 1 Database Lockouts 1 | . 1 . . Manual 19 | . 19 . . Terminals 25 | . 25 . . Fabricators . | . . . . Repair Stations . | . . . . Recycling Units . | . . . . Scanalyzers . | . . . . Garrison Access 6 | . . . 6 Terminal Hacks 11 | . 5 6 . Record 5 | . . 5 . Robot Analysis 1 | . 1 . . Prototype ID Bank 2 | . 2 . . Unreport Threat 1 | . 1 . . Maintenance Status 1 | . 1 . . Proto ID Catalog 1 | . . 1 . Fabricator Hacks . | . . . . Repair Station Hacks . | . . . . Recycling Unit Hacks . | . . . . Scanalyzer . | . . . . Garrison Access Hacks 1 | . . . 1 Seal Access 1 | . . . 1 Unauthorized Hacks 10 | . 10 . . Terminals 10 | . 10 . . Botnet 5 | . 5 . . Skim 5 | . 5 . . Fabricators . | . . . . Repair Stations . | . . . . Recycling Units . | . . . . Scanalyzers . | . . . . Garrison Access . | . . . . Data Cores Recovered . | . . . . Used . | . . . . Hacking Detections 6 | . 5 . 1 Full Trace Events . | . . . . Feedback Events . | . . . . Feedback Blocked . | . . . . Robot Schematics Acquired . | . . . . Robots Built . | . . . . Authchips . | . . . . Time . | . . . . Total Robot Build Rating . | . . . . Part Schematics Acquired . | . . . . Parts Built . | . . . . Authchips . | . . . . Time . | . . . . Total Part Build Rating . | . . . . Part Studies Acquired . | . . . . Parts Repaired . | . . . . Time . | . . . . Parts Recycled . | . . . . Recycled Matter . | . . . . Retrieved Matter . | . . . . Retrieved Components . | . . . . Parts Scanalyzed . | . . . . Part Schematics Acquired . | . . . . Parts Damaged . | . . . . Bothacking | -11 -10 -10 -8 ------------ Run | Yrd Mat Sub Mat Used RIF Installer . | . . . . Robots Hacked . | . . . . Non-combat . | . . . . Combat . | . . . . Robot Hacks Applied . | . . . . Relay Couplers Released . | . . . . Fabnet Peak Effective % . | . . . . Robots Rewired . | . . . . Allies Hacked . | . . . . Hacks Repelled . | . . . . Allies | -11 -10 -10 -8 -------- Run | Yrd Mat Sub Mat Total Allies . | . . . . Largest Group . | . . . . Highest-Rated Group . | . . . . Highest-Rated Ally . | . . . . Total Orders . | . . . . Ally Attacks . | . . . . Total Damage . | . . . . Kills . | . . . . Allies Corrupted . | . . . . Allies Melted . | . . . . Intel | -11 -10 -10 -8 ------- Run | Yrd Mat Sub Mat Active Infowar (turns) 3121 | 36 1515 1456 114 Optics 114 | . . . 114 Seismic 3007 | 36 1515 1456 . Robot Analysis Total 1 | . 1 . . Derelict Logs Recovered 2 | . . 2 . Drone Launches . | . . . . Drone Recoveries . | . . . . Exploration | -11 -10 -10 -8 ------------- Run | Yrd Mat Sub Mat Turns Passed 4125 | 115 1562 2213 235 Spaces Moved 2146 | 74 750 1075 247 Core 221 | 6 . . 215 Treads 1814 | . 707 1075 32 Legs . | . . . . Wheels 111 | 68 43 . . Hover . | . . . . Flight . | . . . . Fastest Speed 50 | 50 80 160 50 Average Speed 158 | 78 155 184 75 Slowest Speed 450 | 100 160 240 450 Overloaded Moves . | . . . . Propulsion Burnouts . | . . . . Robots Hopped . | . . . . Potential Cave-ins . | . . . . Cave-ins Triggered . | . . . . Exploration Rate (%) 49 | 4 98 69 26 Regions Visited 3 Branch Regions 1 Pre-discovered Areas 4 | . 2 2 . Known Exits Taken 1 | . . 1 . Unknown Exits Taken 2 | 1 1 . . Scrap Searched 17 | . . 17 . Spaces Dug 5 | . . 5 . Terrain Destroyed 17 | . . 14 3 Melee . | . . . . Projectile 11 | . . 8 3 AOE 6 | . . 6 . Terrain Rammed . | . . . . Walls Destroyed . | . . . . Machines Disabled . | . . . . Actions | -11 -10 -10 -8 --------- Run | Yrd Mat Sub Mat Total 2633 | 101 1036 1211 285 Wait 245 | 1 200 27 17 Move 2143 | 73 749 1074 247 Hop . | . . . . Pick Up 36 | 7 11 15 3 Fast Attach 18 | 7 3 4 4 Attach 12 | . 3 6 3 Detach . | . . . . Swap 9 | . 4 5 . Drop 27 | . 6 16 5 Fire 141 | 13 58 64 6 Melee . | . . . . Ram . | . . . . Kick . | . . . . Crush 2 | . 2 . . Escape Stasis . | . . . . Rewire . | . . . . Trap . | . . . . Miscellaneous . | . . . . Route ------- -11/Scrapyard -10/Materials (discovered 5 exits: *Mat x3 / [*Min] / *Sub) -10/Subcaves (discovered 3 exits: *Mat x2 / Rec) -8/Materials (discovered 1 exit: [*Sto]) History --------- Turn | Location | Event 11 | -11/Scrapyard | Discovered new exit (range 15) 116 | -11/Scrapyard | Entered Materials 146 | -10/Materials | Discovered new exit (range 7) 221 | -10/Materials | Discovered new exit (range 5) 316 | -10/Materials | Build established: Mutant 1107 | -10/Materials | Discovered new exit (range 5) 1166 | -10/Materials | Identified exit to Materials 1227 | -10/Materials | Learned location of Recycling (-8) 1238 | -10/Materials | Central database locked down 1318 | -10/Materials | Learned location of 2 exits from Mines 1351 | -10/Materials | Learned Storage stockpile data 1395 | -10/Materials | Learned location of Mines (-9) 1450 | -10/Materials | Learned location of 2 exits from Subcaves 1678 | -10/Materials | Entered Subcaves 1679 | -10/Subcaves | Identified exit to Materials 1680 | -10/Subcaves | Identified exit to Recycling 1812 | -10/Subcaves | Learned Materials garrison access intel 1821 | -10/Subcaves | Disturbed a concealed Subdweller 1831 | -10/Subcaves | Core integrity fell below 50% 2124 | -10/Subcaves | Visited 4L-MR0's lab 2161 | -10/Subcaves | Found Cargo Legs 2461 | -10/Subcaves | A swath of the cavern ceiling suddenly collapsed 2589 | -10/Subcaves | Visited Clippyterm 2594 | -10/Subcaves | Learned location of Section 7 (-2) 2594 | -10/Subcaves | Learned Research security intel 2866 | -10/Subcaves | Disturbed a concealed Subdweller 3041 | -10/Subcaves | Build established: Scavenger-Mutant 3323 | -10/Subcaves | Learned location of Zion (-7) 3615 | -10/Subcaves | Core integrity fell below 20% 3636 | -10/Subcaves | Disturbed a concealed Subdweller 3891 | -10/Subcaves | Entered Materials 3891 | -8/Materials | Evolved 4 slots: Propulsion x2, Utility x2 3892 | -8/Materials | Loaded intel: 1 garrison access location 3906 | -8/Materials | Build established: Mutant 3953 | -8/Materials | Garrison activated, responded to threat 4012 | -8/Materials | Core integrity fell below 50% 4023 | -8/Materials | Lost 8 parts (3p2n1u2w) 4059 | -8/Materials | Discovered new exit (range 21) 4077 | -8/Materials | Core integrity fell below 20% 4126 | -8/Materials | Destroyed by G-47 Trooper with Particle Gun Last Messages --------------- 04016_ K-01 Serf collects debris. 04021_ Acquired Adv. Visual Processing Unit. 04023_ K-01 Serf cleans the Atomic Centrifuge. 04035_ Connecting with Garrison Access... >>Seal Access door sealed. 04052_ R-06 Scavenger collects Corrupted Sub. Monowheel. 04054_ K-01 Serf collects debris. 04056_ Hacking Suite destroyed. 04057_ K-01 Serf collects debris. 04058_ G-47 Trooper suffers critical hit (Burn). 04059_ EXIT=FOUND 04063_ Sub. Optics destroyed. 04065_ Dropped Sub. Laser. 04068_ Acquired Med. Storage Unit. 04072_ Critical hit (Burn: +37). 04088_ Dropped Lrg. Matter Pod. 04090_ Acquired Hrd. Medium Armor Plating. 04107_ Acquired Adv. Targeting Computer. Map ----- +----------------------------------------------------+ | # ########### #??# [+ """ #??????????????? | | # #??# # """ #??????????????? | | + #??# # """ #??????????????? | | # #??# ########??????????????? | | ### #########+##### #????###??????????????? | | #?# # # #?? #??????????????? | | #?# + " """ """ # g# = #??????????????? | | #?###### "G" """ """ # + #??????????????? | | #??????# " " """ """ # # //[ #??????????????? | | ###??????# + #??/[[ #??????????????? | | ?????????#! # #???? #??????????????? | | ?????????############### #??????#??????????????? | | ???????????????????????# #?????????????????????? | | ???????????????????????# #?????????????????????? | | ???????????????????????+ #?????????????????????? | | ???????????????????????# #######???????????????? | | ???????????????????????# # #???????????????? | | ???????????????????????# # """ #???????????????? | | ???????????????????????# # "R #???????????????? | | ???????????????????????# # """ #???????????????? | | ???????????????????????# # #???????????????? | | ???????????????????????# # ! #???????????????? | | ???????????????????????# # ]#???????????????? | | ???????????????????????# # #???????????????? | | ???????????????????????# # !!! #???????????????? | | ???????????????????????# @ # !!! ###########?????? | | ???????????????????????# # ! ! # #?????? | | ???????????????????????# l # ##! """""#?????? | | ???????????????????????# ###+#### """""#?????? | | ???????????????????????# gg ! # """""#?????? | | ???????????????????????# + """""#?????? | | ???????????????????????# # """""#?????? | | ???????????????????????########## # """""######? | | ????????????????????????????????# # """""#! #? | | ????????????????????????????????# # # #? | | ????????????????????????????????# #####/##+# #? | | ????????????????????????????????# #???# # #? | | ????????????????????????????????# #???# # #? | | ????????????????????????????????# #???# # #? | | ????????????????????????????????# ##### # #? | | ????????????????????????????????# + #? | | ????????????????????????????????# ######+######? | | ?????????????????????????????# #??? ????? | | ?????????????????????????????#! !#?# ] ??? | | ?????????????????????????????##!!!!##?# #?? | | ??????????????????????????????######??#/ !#?? | | ??????????????????????????????????????##########?? | | ?????????????????????????????????????????????????? | | ?????????????????????????????????????????????????? | | ?????????????????????????????????????????????????? | +----------------------------------------------------+ Best States ------------- Heat Dissipation 31 Energy Generation 15 Energy Capacity 265 Matter Stores 300 Matter Capacity 300 Sight Range 21 Terrain Scan Density 10 Armor Coverage 800 Evasion (%) 50 Targeting Accuracy 8 Recoil Reduction 2 Offensive Hacking 10 Item Schematics ----------------- None Robot Schematics ------------------ None Fabricated ------------ Nothing Repaired ---------- Nothing Studied --------- None Alien Tech Used ----------------- None Achievements -------------- None Challenges ------------ None Game ------ Seed MyomerBoreRipteeth Manual? 0 Play Time 00:29:24 Cumulative 88.6 hours Start 2025.11.10 @ 04:50:40 End 2025.11.10 @ 05:21:04 Sessions 1 Manual Loads 0 Difficulty Rogue Special Mode None Game No. 79 Rogue 79 Adventurer 0 Explorer 0 Win Type - Total 1 Types 1/0/0/0/0/0/0/0/0/0 Lore% 37 Gallery% 41 Achievement% 33 Wizard Run 0 Options --------- Layout 2 ASCII 0 Keyboard 0 Movement Mouse Keybinds 0 Fullscreen 2 Font 24/Terminus Map View 50x44 Zoom Use 0% Tactical HUD 1 Map Filters NONE Filters NONE Steam 1 RUN: 2988e0c3-bcf2-4e7c-b932-059873a5fd4f